bitfinex/quotes_BTCUSD_20251202
["timestamp","ask_amount","ask_price","bid_price","bid_amount"]
[1764675786840,0.1304183,87483.0,87482.0,0.1160205]
[1764675787208,0.15506929,87483.0,87482.0,0.1160205]
[1764675787405,0.15506929,87483.0,87482.0,0.0634305]
[1764675788120,0.15506929,87483.0,87482.0,0.1160205]
[1764675788535,0.15506929,87483.0,87482.0,0.0275805]
[1764675793872,0.15506929,87483.0,87482.0,0.0634405]
[1764675794054,0.15506929,87483.0,87482.0,0.1160305]
[1764675797293,0.15506929,87483.0,87482.0,0.0275805]
[1764675798885,0.15506929,87483.0,87482.0,0.1160305]
[1764675799049,0.15506929,87483.0,87482.0,0.0634405]
[1764675801330,0.18579456,87483.0,87482.0,0.0634405]
[1764675802427,2.66749717,87483.0,87482.0,0.0019805]
[1764675802606,2.73002016,87483.0,87482.0,0.0019805]
[1764675802809,2.77098718,87483.0,87482.0,0.0019805]
[1764675803157,2.77118467,87483.0,87482.0,0.0019805]
[1764675803324,2.73002016,87483.0,87482.0,0.0019805]
[1764675804298,2.77117152,87483.0,87482.0,0.0019805]
[1764675804652,2.77217152,87483.0,87482.0,0.0019805]
[1764675805239,2.64017211,87483.0,87482.0,0.0019805]
[1764675808146,2.68128116,87483.0,87482.0,0.0019805]
[1764675808949,2.69936116,87483.0,87482.0,0.0019805]
[1764675809145,2.65825211,87483.0,87482.0,0.0019805]
[1764675809532,2.69936116,87483.0,87482.0,0.0019805]
[1764675810207,2.65825211,87483.0,87482.0,0.0019805]
[1764675811179,2.69933869,87483.0,87482.0,0.0019805]
[1764675811694,2.39034016,87483.0,87482.0,0.0019805]
[1764675812494,2.23047869,87483.0,87482.0,0.0019805]
[1764675812846,2.26484828,87483.0,87482.0,0.0019805]
[1764675813473,2.58784828,87483.0,87482.0,0.0019805]
[1764675815810,2.24676828,87483.0,87482.0,0.0019805]
[1764675815965,2.21239869,87483.0,87482.0,0.0019805]
[1764675816153,2.1679557,87483.0,87482.0,0.0019805]
[1764675816846,2.55347869,87483.0,87482.0,0.0019805]
[1764675817054,2.23047869,87483.0,87482.0,0.0019805]
[1764675817261,2.1679557,87483.0,87482.0,0.0019805]
[1764675817469,2.4909557,87483.0,87482.0,0.0019805]
[1764675817682,2.4909557,87483.0,87482.0,0.0975105]
[1764675817683,0.30973717,87483.0,87482.0,0.0975105]
[1764675817900,0.63273717,87483.0,87482.0,0.0975105]
[1764675818106,0.30973717,87483.0,87482.0,0.0975105]
[1764675818523,0.63173717,87483.0,87482.0,0.0975105]
[1764675818708,0.63273717,87483.0,87482.0,0.0975105]
[1764675819586,0.63273717,87483.0,87482.0,0.0019805]
[1764675820020,0.63273717,87483.0,87482.0,0.0975105]
[1764675820797,0.63273717,87483.0,87482.0,0.0019805]
[1764675822503,0.65737829,87483.0,87482.0,0.0019805]
[1764675824146,0.65737829,87483.0,87482.0,0.0388105]
[1764675824834,0.65737829,87483.0,87482.0,0.0975105]
[1764675826422,0.42776245,87483.0,87482.0,0.0975105]
[1764675826638,0.40312133,87483.0,87482.0,0.0975105]
[1764675827038,0.63173717,87483.0,87482.0,0.0975105]
[1764675827676,0.323,87483.0,87482.0,0.0975105]
[1764675827834,0.323,87483.0,87482.0,0.32612895]
[1764675828253,0.323,87483.0,87482.0,0.0975105]
[1764675828542,0.323,87483.0,87482.0,0.32612895]
[1764675828743,0.323,87483.0,87482.0,0.32712895]
[1764675833352,0.55161584,87483.0,87482.0,0.0985105]
[1764675833513,0.323,87483.0,87482.0,0.32712895]
[1764675834298,0.323,87483.0,87482.0,0.0985105]
[1764675834638,0.55161584,87483.0,87482.0,0.0398105]
[1764675835549,0.55161584,87483.0,87482.0,0.0388105]
[1764675836044,0.55161584,87483.0,87482.0,0.0398105]
[1764675837548,0.55161584,87483.0,87482.0,0.0985105]
[1764675838073,0.55161584,87483.0,87482.0,0.0398105]
[1764675839101,0.55161584,87483.0,87482.0,0.0985105]
[1764675839961,0.55161584,87483.0,87482.0,0.0398105]
[1764675840367,0.55161584,87483.0,87482.0,0.0029805]
[1764675840571,2.57626236,87483.0,87482.0,0.0029805]
[1764675841217,2.57626236,87483.0,87482.0,0.0019805]
[1764675842089,2.63878535,87483.0,87482.0,0.0019805]
[1764675842730,2.63978535,87483.0,87482.0,0.0019805]
[1764675848018,2.46316974,87483.0,87482.0,0.0019805]
[1764675848161,2.35690084,87483.0,87482.0,0.0019805]
[1764675848376,2.35790084,87483.0,87482.0,0.0019805]
[1764675849129,2.31678535,87483.0,87482.0,0.0019805]
[1764675850103,2.63978535,87483.0,87482.0,0.0019805]
[1764675850320,2.68087967,87483.0,87482.0,0.0019805]
[1764675851331,2.63978535,87483.0,87482.0,0.0019805]
[1764675852279,2.46448297,87483.0,87482.0,0.0019805]
[1764675853491,2.48256297,87483.0,87482.0,0.0019805]
[1764675858342,2.48256297,87483.0,87482.0,0.0019805]
[1764675859340,2.51213297,87483.0,87482.0,0.0019805]
[1764675862148,2.57382161,87483.0,87482.0,0.0019805]
[1764675862748,2.55574161,87483.0,87482.0,0.0019805]
[1764675862972,2.57382161,87483.0,87482.0,0.0019805]
[1764675863190,2.51213297,87483.0,87482.0,0.0019805]
[1764675865043,2.55567965,87483.0,87482.0,1e-08]
[1764675865386,2.51213297,87483.0,87482.0,1e-08]
[1764675865595,2.49405297,87483.0,87482.0,1e-08]
[1764675865792,2.51213297,87483.0,87482.0,1e-08]
[1764675865994,2.49405297,87483.0,87482.0,1e-08]
[1764675866304,2.51213297,87483.0,87482.0,1e-08]
[1764675867344,2.57375965,87483.0,87482.0,1e-08]
[1764675868222,2.51213297,87483.0,87482.0,1e-08]
[1764675874385,2.17105297,87483.0,87482.0,1e-08]
[1764675874587,0.22865243,87469.0,87468.0,0.05888]
[1764675874748,0.2286655,87464.0,87463.0,0.02832]
[1764675874933,0.25331202,87464.0,87463.0,0.0872]
[1764675875137,0.25331202,87464.0,87463.0,0.02832]
[1764675875571,0.25331202,87464.0,87463.0,0.12551]
[1764675875948,0.25331202,87464.0,87463.0,0.12651]
[1764675876156,0.25331202,87464.0,87463.0,0.06809]
[1764675876385,0.25331202,87464.0,87463.0,0.02932]
[1764675876790,0.25331202,87464.0,87463.0,0.12618]
[1764675879975,0.25331202,87464.0,87463.0,0.06776]
[1764675880174,0.25331202,87464.0,87463.0,0.06835403]
[1764675881075,0.25331202,87464.0,87463.0,0.02991403]
[1764675886243,0.25331202,87464.0,87463.0,0.00159403]
[1764675886844,0.28420129,87464.0,87463.0,0.00159403]
[1764675887265,0.31857005,87464.0,87463.0,0.00159403]
[1764675888727,2.31857005,87464.0,87463.0,0.00159403]
[1764675890176,2.64157005,87464.0,87463.0,0.00159403]
[1764675890335,2.61068078,87464.0,87463.0,0.00159403]
[1764675891574,2.64157283,87464.0,87463.0,0.00159403]
[1764675893891,2.64157283,87464.0,87463.0,0.04003403]
[1764675894045,2.64157283,87464.0,87463.0,0.09845403]
[1764675894266,2.64157283,87464.0,87463.0,0.04003403]
[1764675895563,2.64157283,87464.0,87463.0,0.00159403]
[1764675895977,2.64157283,87464.0,87463.0,0.09845403]
[1764675896510,2.64157283,87464.0,87463.0,0.04003403]
[1764675902386,2.64157283,87464.0,87463.0,0.00159403]
[1764675902601,2.61068078,87464.0,87463.0,0.00159403]
[1764675906410,2.61068078,87464.0,87463.0,0.11877403]
[1764675906752,2.64157076,87464.0,87463.0,0.11877403]
[1764675907846,0.61068078,87464.0,87463.0,0.11877403]
[1764675908060,0.38201528,87464.0,87463.0,0.11877403]
[1764675908256,0.61068078,87464.0,87463.0,0.11877403]
[1764675908412,0.02464652,87464.0,87463.0,0.11877403]
[1764675908612,0.323,87466.0,87463.0,0.34744215]
[1764675908833,0.02464652,87465.0,87464.0,0.05268]
[1764675909035,0.02464652,87465.0,87464.0,0.2813455]
[1764675909252,0.02464652,87465.0,87464.0,0.09049]
[1764675909664,0.02464652,87465.0,87464.0,0.3191555]
[1764675909865,0.323,87466.0,87464.0,0.33058877]
[1764675910026,0.56309054,87467.0,87466.0,0.03781]
[1764675910213,0.58779932,87467.0,87466.0,0.03781]
[1764675910416,0.58779932,87467.0,87466.0,0.09049]
[1764675911233,0.58779932,87467.0,87466.0,0.09149]
[1764675913582,0.34770878,87467.0,87466.0,0.09149]
[1764675913949,0.34770878,87467.0,87466.0,0.32015027]
[1764675914310,0.34770878,87467.0,87466.0,0.09149]
[1764675914497,0.34770878,87467.0,87466.0,0.32015027]
[1764675914699,0.34770878,87467.0,87466.0,0.09149]
[1764675915054,0.57636644,87467.0,87466.0,0.09149]
[1764675915261,0.34770878,87467.0,87466.0,0.09149]
[1764675915459,0.34770878,87467.0,87466.0,0.32015027]
[1764675915713,0.03088998,87481.0,87474.0,0.22863781]
[1764675916009,0.24005885,87479.0,87475.0,0.29274627]
[1764675916184,0.22863167,87477.0,87475.0,0.05268]
[1764675916392,0.24006324,87477.0,87476.0,0.09049]
[1764675917940,0.24006324,87477.0,87476.0,0.09249]
[1764675919102,0.01143157,87477.0,87476.0,0.09249]
[1764675919442,0.24005722,87480.0,87476.0,0.09249]
[1764675919592,0.26472408,87480.0,87479.0,0.03781]
[1764675919993,0.26472408,87480.0,87479.0,0.09049]
[1764675920194,0.24005722,87480.0,87479.0,0.09049]
[1764675921371,0.04799224,87480.0,87479.0,0.09149]
[1764675921722,0.05942342,87480.0,87479.0,0.09149]
[1764675924857,0.01143092,87482.0,87479.0,0.3201161]
[1764675925057,0.24004911,87483.0,87480.0,0.28130352]
[1764675925259,0.08012133,87484.0,87482.0,0.0645]
[1764675925459,0.08012133,87484.0,87483.0,0.26642584]
[1764675925661,0.08012133,87484.0,87483.0,0.31910584]
[1764675926162,0.08012133,87484.0,87483.0,0.09049]
[1764675926511,0.08012133,87484.0,87483.0,0.31910584]
[1764675926713,0.08012133,87484.0,87483.0,0.09049]
[1764675926917,0.08012133,87484.0,87483.0,0.31910584]
[1764675927343,0.08012133,87484.0,87483.0,0.09049]
[1764675927521,0.08012133,87484.0,87483.0,0.32110584]
[1764675927921,0.08012133,87484.0,87483.0,0.09249]
[1764675928127,0.30873456,87484.0,87483.0,0.09249]
[1764675928488,0.08012133,87484.0,87483.0,0.09249]
[1764675929006,0.30873456,87484.0,87483.0,0.09249]
[1764675929952,0.08012133,87484.0,87483.0,0.09249]
[1764675930497,0.08012133,87484.0,87483.0,0.32110584]
[1764675931348,0.55198851,87485.0,87484.0,0.22861323]
[1764675931678,0.49455851,87485.0,87484.0,0.31910323]
[1764675932660,0.49455851,87485.0,87484.0,0.32210323]
[1764675932828,0.49455851,87485.0,87484.0,0.31910323]
[1764675933276,0.49455851,87485.0,87484.0,0.32410323]
[1764675934347,0.49455851,87485.0,87484.0,0.32510323]
[1764675940884,0.00141794,87512.0,87509.0,0.22854749]
[1764675941187,0.00141794,87512.0,87509.0,0.22854788]
[1764675941188,0.22995969,87512.0,87509.0,0.22854788]
[1764675941348,0.00141794,87512.0,87511.0,0.06292]
[1764675941872,0.22995802,87512.0,87511.0,0.11834]
[1764675942241,0.22855053,87508.0,87507.0,0.02668]
[1764675942654,0.22855053,87508.0,87507.0,0.11834]
[1764675942881,0.22855053,87508.0,87507.0,0.06292]
[1764675943265,0.22855053,87508.0,87507.0,0.11834]
[1764675944211,0.22855053,87508.0,87507.0,0.06292]
[1764675944624,0.22855053,87508.0,87507.0,0.11834]
[1764675951816,0.22855053,87508.0,87507.0,0.02668]
[1764675953557,0.22854863,87509.0,87507.0,0.02668]
[1764675953810,0.00141794,87512.0,87508.0,0.26478825]
[1764675954006,0.02668,87509.0,87507.0,0.02668]
[1764675954315,0.22854827,87509.0,87507.0,0.02668]
[1764675954541,0.01142726,87510.0,87508.0,0.09166]
[1764675954910,0.22854999,87509.0,87508.0,0.05542]
[1764675955104,0.23997271,87510.0,87509.0,0.09166]
[1764675955234,0.22854349,87511.0,87509.0,0.09166]
[1764675955439,0.22855003,87509.0,87507.0,0.04953531]
[1764675955810,0.22854922,87509.0,87508.0,0.001]
[1764675956022,0.22854922,87509.0,87508.0,0.09166]
[1764675957995,0.02464966,87510.0,87508.0,0.09266]
[1764675958309,0.22854562,87510.0,87509.0,0.09166]
[1764675958540,0.25319528,87510.0,87509.0,0.09166]
[1764675959104,0.00141794,87512.0,87510.0,0.2285453]
[1764675959302,0.00141794,87512.0,87511.0,0.26478269]
[1764675959515,0.00141794,87512.0,87511.0,0.32020269]
[1764675961364,0.00141794,87512.0,87511.0,0.32120269]
[1764675964848,0.22995802,87512.0,87511.0,0.09266]
[1764675965897,0.00141794,87512.0,87511.0,0.09266]
[1764675966099,0.22995802,87512.0,87511.0,0.09266]
[1764675968598,0.22995802,87512.0,87511.0,0.001]
[1764675969033,0.26430656,87512.0,87511.0,0.001]
[1764675969959,0.22855053,87508.0,87507.0,0.02668]
[1764675970138,0.33335958,87508.0,87507.0,0.08287]
[1764675970546,0.33335958,87508.0,87507.0,0.02668]
[1764675970979,0.33442831,87502.0,87493.0,0.02584]
[1764675971179,0.30870843,87494.0,87493.0,0.02584]
[1764675971381,0.33339615,87494.0,87493.0,0.02584]
[1764675971604,0.36774964,87494.0,87493.0,0.02584]
[1764675972386,0.22861681,87483.0,87481.0,0.01143105]
[1764675972603,0.22863675,87475.0,87473.0,0.08475]
[1764675972835,0.22863675,87475.0,87473.0,0.02856]
[1764675973040,0.55163261,87477.0,87474.0,0.04042009]
[1764675973257,0.24006418,87477.0,87475.0,0.05619]
[1764675973457,0.24006418,87477.0,87476.0,0.04017]
[1764675973661,0.22863152,87477.0,87476.0,0.04017]
[1764675973878,0.22863152,87477.0,87476.0,0.09636]
[1764675974086,0.34311228,87477.0,87476.0,0.09636]
[1764675974497,0.22863675,87475.0,87474.0,0.00025009]
[1764675974709,0.26865675,87475.0,87474.0,0.00025009]
[1764675975318,0.59165675,87475.0,87474.0,0.00025009]
[1764675975521,0.55163675,87475.0,87474.0,0.00025009]
[1764675975942,0.323,87475.0,87474.0,0.09661009]
[1764675976111,0.55163675,87475.0,87474.0,0.09661009]
[1764675976745,0.55163675,87475.0,87474.0,0.04042009]
[1764675976949,0.55163675,87475.0,87474.0,0.09661009]
[1764675977377,0.35520787,87475.0,87474.0,0.09761009]
[1764675977574,0.22863675,87475.0,87474.0,0.09661009]
[1764675978706,0.11448076,87477.0,87474.0,0.09661009]
[1764675978909,0.22863675,87475.0,87474.0,0.00025009]
[1764675979418,0.22863675,87475.0,87474.0,0.09661009]
[1764675980472,0.22863511,87476.0,87474.0,0.09661009]
[1764675980642,0.22863675,87475.0,87474.0,0.00025009]
[1764675981049,0.22863675,87475.0,87474.0,0.04042009]
[1764675981200,0.22863675,87475.0,87474.0,0.09661009]
[1764675982694,0.12863675,87475.0,87474.0,0.09661009]
[1764675982900,0.16299752,87475.0,87474.0,0.04042009]
[1764675983602,0.00214096,87475.0,87474.0,0.04042009]
[1764675983987,0.23077771,87475.0,87474.0,0.04042009]
[1764675984605,0.23077771,87475.0,87474.0,0.09661009]
[1764675986091,0.00214096,87475.0,87474.0,0.09661009]
[1764675986263,0.22861564,87484.0,87477.0,0.2286293]
[1764675986482,0.2400463,87484.0,87483.0,0.06873]
[1764675986678,0.03435743,87484.0,87483.0,0.12492]
[1764675986862,0.26297066,87484.0,87483.0,0.12492]
[1764675987063,0.03435743,87484.0,87483.0,0.12492]
[1764675987275,0.24003868,87486.0,87483.0,0.12492]
[1764675987466,0.03435743,87488.0,87485.0,0.04017]
[1764675987667,0.08012133,87494.0,87493.0,0.22858971]
[1764675987866,0.08012133,87494.0,87493.0,0.26875971]
[1764675988072,0.08012133,87494.0,87493.0,0.32494971]
[1764675988533,0.08012133,87494.0,87493.0,0.09636]
[1764675988655,0.08012133,87494.0,87493.0,0.32494971]
[1764675989016,0.08012133,87494.0,87493.0,0.09636]
[1764675989352,0.08012133,87494.0,87493.0,0.32494971]
[1764675989558,0.08012133,87494.0,87493.0,0.09636]
[1764675991026,0.30870843,87494.0,87493.0,0.09636]
[1764675991365,0.08012133,87494.0,87493.0,0.09636]
[1764675991561,0.323,87509.0,87495.0,0.01142922]
[1764675991766,2.56298563,87507.0,87506.0,0.02536]
[1764675992179,0.56298563,87507.0,87506.0,0.12479]
[1764675994605,0.23998563,87507.0,87506.0,0.12479]
[1764675994802,0.08012133,87508.0,87506.0,0.12479]
[1764675995008,0.30867186,87508.0,87507.0,0.09943]
[1764675995605,0.08012133,87508.0,87507.0,0.09943]
[1764675995789,0.22852788,87517.0,87510.0,0.22854464]
[1764675995790,0.323,87517.0,87510.0,0.22854464]
[1764675995991,0.01142517,87526.0,87511.0,0.27025269]
[1764675996218,0.01142582,87521.0,87511.0,0.33156269]
[1764675996418,0.22851654,87522.0,87511.0,0.33156269]
[1764675996617,0.01142569,87522.0,87511.0,0.33156269]
[1764675996848,0.22852178,87520.0,87511.0,0.33156269]
[1764675997087,0.01142569,87522.0,87511.0,0.33156269]
[1764675997223,0.01142582,87521.0,87511.0,0.33156269]
[1764675997563,0.01142635,87517.0,87511.0,0.33156269]
[1764675997763,0.22852269,87519.0,87511.0,0.33156269]
[1764675998117,0.01142595,87520.0,87511.0,0.33156269]
[1764675998320,0.22852271,87519.0,87511.0,0.33156269]
[1764675998527,0.01142609,87519.0,87511.0,0.33156269]
[1764675998923,0.01142582,87521.0,87511.0,0.33156269]
[1764675999545,0.22850261,87527.0,87511.0,0.33156269]
[1764675999749,0.01142543,87524.0,87511.0,0.33156269]
[1764676000125,0.22851231,87523.0,87511.0,0.33156269]
[1764676000360,0.01142569,87522.0,87511.0,0.33156269]
[1764676000781,0.22851236,87523.0,87511.0,0.33156269]
[1764676000977,0.01142569,87522.0,87511.0,0.33156269]
[1764676001197,0.23993978,87522.0,87511.0,0.33156269]
[1764676001803,0.01142556,87523.0,87511.0,0.33156269]
[1764676002005,0.23993951,87523.0,87511.0,0.33356269]
[1764676002204,0.08012133,87524.0,87511.0,0.33356269]
[1764676002498,0.01142569,87522.0,87511.0,0.33356269]
[1764676002669,0.08012133,87524.0,87511.0,0.33356269]
[1764676002868,0.01142569,87522.0,87511.0,0.33356269]
[1764676003012,0.23993933,87523.0,87511.0,0.33356269]
[1764676003413,0.3086316,87524.0,87511.0,0.33356269]
[1764676003621,0.08012133,87524.0,87511.0,0.33356269]
[1764676003842,0.09154676,87524.0,87511.0,0.33356269]
[1764676004125,0.01142556,87523.0,87511.0,0.33356269]
[1764676004356,0.08012133,87524.0,87511.0,0.33356269]
[1764676004556,0.01142569,87522.0,87511.0,0.33156269]
[1764676004758,0.08012133,87524.0,87511.0,0.33156269]
[1764676005071,0.01142556,87523.0,87511.0,0.33456269]
[1764676005281,0.23993724,87523.0,87511.0,0.33456269]
[1764676005434,0.01142556,87523.0,87511.0,0.33456269]
[1764676005635,0.30863111,87524.0,87511.0,0.33456269]
[1764676005862,0.08012133,87524.0,87511.0,0.33456269]
[1764676009221,0.01142413,87534.0,87511.0,0.33456269]
[1764676009388,0.33442413,87534.0,87511.0,0.33456269]
[1764676009589,0.323,87532.0,87511.0,0.33456269]
[1764676010802,0.323,87532.0,87511.0,0.33156269]
[1764676011006,0.22849245,87531.0,87511.0,0.33256269]
[1764676011225,0.22849332,87530.0,87511.0,0.33556269]
[1764676011433,0.01142452,87531.0,87511.0,0.33556269]
[1764676011613,0.23991709,87531.0,87511.0,0.33556269]
[1764676011817,0.01142452,87531.0,87511.0,0.33556269]
[1764676012034,0.01142491,87528.0,87511.0,0.33556269]
[1764676012216,0.0114253,87525.0,87511.0,0.35364269]
[1764676012427,0.22850358,87526.0,87511.0,0.35364269]
[1764676012634,0.01142517,87526.0,87511.0,0.35364269]
[1764676012863,0.22850628,87525.0,87511.0,0.35364269]
[1764676013075,0.01142569,87522.0,87511.0,0.35264269]
[1764676013284,0.2399556,87518.0,87511.0,0.35264269]
[1764676013575,0.23995716,87516.0,87511.0,0.35264269]
[1764676013746,0.01142648,87516.0,87511.0,0.34964269]
[1764676014196,0.23995656,87516.0,87511.0,0.35164269]
[1764676014320,0.01142648,87516.0,87511.0,0.35164269]
[1764676014515,0.22852851,87517.0,87511.0,0.35164269]
[1764676014949,0.01142648,87516.0,87511.0,0.35164269]
[1764676015588,0.22852851,87517.0,87511.0,0.35164269]
[1764676015826,0.01142622,87518.0,87511.0,0.35164269]
[1764676016138,0.01142661,87515.0,87511.0,0.35164269]
[1764676016342,0.01142661,87515.0,87511.0,0.1231]
[1764676016488,0.2399609,87515.0,87511.0,0.1231]
[1764676016692,0.01142661,87515.0,87511.0,0.35164269]
[1764676016895,0.01142648,87516.0,87511.0,0.35164269]
[1764676017099,0.23995804,87516.0,87511.0,0.35164269]
[1764676017545,0.23995687,87516.0,87511.0,0.35164269]
[1764676017716,0.01142622,87518.0,87511.0,0.35164269]
[1764676017919,0.01142648,87516.0,87511.0,0.35164269]
[1764676018125,0.01142661,87515.0,87511.0,0.35164269]
[1764676018970,0.23995718,87516.0,87511.0,0.35164269]
[1764676019180,0.23995813,87516.0,87511.0,0.35164269]
[1764676019740,0.22853331,87515.0,87511.0,0.35164269]
[1764676019986,0.23996162,87514.0,87511.0,0.35164269]
[1764676020348,0.22995802,87512.0,87511.0,0.10502]
[1764676020557,0.22995802,87512.0,87511.0,0.1231]
[1764676021793,0.22995802,87512.0,87511.0,0.1211]
[1764676021996,0.22995802,87512.0,87511.0,0.01808]
[1764676022494,0.00141794,87512.0,87511.0,0.1211]
[1764676022664,0.00141794,87512.0,87511.0,0.37249695]
[1764676022841,0.00141794,87512.0,87511.0,0.34964269]
[1764676023244,0.00141794,87512.0,87511.0,0.35064269]
[1764676023444,0.00141794,87512.0,87511.0,0.34964269]
[1764676023773,0.00141794,87512.0,87511.0,0.35264269]
[1764676024539,0.00141794,87512.0,87511.0,0.1241]
[1764676024780,0.00141794,87512.0,87511.0,0.35264269]
[1764676026134,0.00141794,87512.0,87511.0,0.34964269]
[1764676026339,0.00141794,87512.0,87511.0,0.35064269]
[1764676029182,0.00141794,87512.0,87511.0,0.34964269]
[1764676029356,0.00141794,87512.0,87511.0,0.35164269]
[1764676033098,0.22995802,87512.0,87511.0,0.1231]
[1764676034382,0.00141794,87512.0,87511.0,0.1231]
[1764676034736,0.00141794,87512.0,87511.0,0.35164269]
[1764676035973,0.00141794,87512.0,87511.0,0.1231]
[1764676036108,0.22995802,87512.0,87511.0,0.1231]
[1764676037417,0.00141794,87512.0,87511.0,0.35164269]
[1764676038227,0.00141794,87512.0,87511.0,0.1231]
[1764676038560,0.00141794,87512.0,87511.0,0.35164269]
[1764676041008,0.00141794,87512.0,87511.0,0.1231]
[1764676041173,0.00141794,87512.0,87511.0,0.35164269]
[1764676043298,0.00141794,87512.0,87511.0,0.1231]
[1764676043501,0.00141794,87512.0,87511.0,0.35164269]
[1764676043937,0.00141794,87512.0,87511.0,0.1231]
[1764676044244,0.22995802,87512.0,87511.0,0.1231]
[1764676044861,0.00141794,87512.0,87511.0,0.1231]
[1764676045436,0.00141794,87512.0,87511.0,0.35164269]
[1764676048031,0.00141794,87512.0,87511.0,0.34964269]
[1764676048616,0.00141794,87512.0,87511.0,0.35164269]
[1764676051350,0.02469648,87534.0,87533.0,0.22848525]
[1764676051555,0.23989444,87539.0,87534.0,0.23990417]
[1764676051708,0.23989444,87539.0,87535.0,0.22847791]
[1764676051909,0.23989444,87539.0,87538.0,0.06768]
[1764676052319,0.23989444,87539.0,87538.0,0.12035]
[1764676052529,0.22848219,87535.0,87533.0,0.02527]
[1764676052739,0.23991435,87533.0,87530.0,0.01808]
[1764676052953,0.22848847,87532.0,87530.0,0.01808]
[1764676053161,0.22849047,87531.0,87530.0,0.01808]
[1764676053544,0.22848847,87532.0,87530.0,0.05337]
[1764676053747,0.22848847,87532.0,87531.0,0.03529]
[1764676053948,0.22848847,87532.0,87531.0,0.08796]
[1764676056286,0.22849047,87531.0,87530.0,0.01808]
[1764676060130,0.22849308,87530.0,87529.0,0.02675]
[1764676060432,0.22905526,87530.0,87529.0,0.02675]
[1764676061866,0.2284983,87528.0,87527.0,0.02938]
[1764676062072,0.30861963,87528.0,87527.0,0.02938]
[1764676062287,0.30911936,87528.0,87527.0,0.02938]
[1764676062448,0.30911936,87528.0,87527.0,0.11985]
[1764676064379,0.30911936,87528.0,87521.0,0.02938]
[1764676064380,0.22851397,87522.0,87521.0,0.02938]
[1764676064796,0.08012133,87528.0,87523.0,0.01142556]
[1764676064970,0.08012133,87528.0,87527.0,0.06229]
[1764676065206,0.30861963,87528.0,87527.0,0.06229]
[1764676065376,0.30861963,87528.0,87527.0,0.11756]
[1764676065786,0.22851397,87522.0,87521.0,0.03038]
[1764676066188,0.22851397,87522.0,87521.0,0.12085]
[1764676066704,0.22851397,87522.0,87521.0,0.11985]
[1764676067612,0.22851397,87522.0,87521.0,0.02938]
[1764676067985,0.22851397,87522.0,87521.0,0.06458]
[1764676068188,0.22851397,87522.0,87521.0,0.11985]
[1764676068691,0.01142543,87524.0,87521.0,0.11985]
[1764676068890,0.23993428,87524.0,87523.0,0.0352]
[1764676069294,0.23993428,87524.0,87523.0,0.09047]
[1764676069894,0.02466639,87525.0,87523.0,0.09047]
[1764676070119,0.22850614,87525.0,87524.0,0.09047]
[1764676071047,0.011424,87535.0,87528.0,0.01142491]
[1764676071199,0.011424,87535.0,87530.0,0.02709]
[1764676071200,0.23990874,87534.0,87530.0,0.02709]
[1764676071398,0.23991142,87533.0,87530.0,0.02709]
[1764676071620,0.00059341,87531.0,87530.0,0.02709]
[1764676071821,0.22908388,87531.0,87530.0,0.02709]
[1764676072179,0.22908388,87531.0,87530.0,0.11756]
[1764676072932,0.22908388,87531.0,87530.0,0.02709]
[1764676074031,0.2284983,87528.0,87527.0,0.02709]
[1764676074237,0.30861963,87528.0,87527.0,0.02709]
[1764676074553,0.30861963,87528.0,87527.0,0.06179]
[1764676074752,0.08012133,87528.0,87527.0,0.11706]
[1764676075673,0.08012133,87528.0,87527.0,0.34556091]
[1764676076536,0.08012133,87528.0,87527.0,0.11706]
[1764676076749,0.30861963,87528.0,87527.0,0.11706]
[1764676077144,0.2284776,87536.0,87527.0,0.11706]
[1764676077349,0.03609761,87535.0,87533.0,0.0352]
[1764676077552,0.23990754,87534.0,87533.0,0.0352]
[1764676077748,0.23990754,87534.0,87533.0,0.09047]
[1764676079272,0.23990754,87534.0,87532.0,0.02709]
[1764676079273,0.22848525,87533.0,87532.0,0.02709]
[1764676079585,0.25315886,87533.0,87532.0,0.02709]
[1764676079785,0.2284983,87528.0,87527.0,0.02659]
[1764676080005,0.30861963,87528.0,87527.0,0.02659]
[1764676080137,0.22850353,87526.0,87525.0,0.01808]
[1764676080338,0.22851397,87522.0,87521.0,0.02938]
[1764676080778,0.22851397,87522.0,87521.0,0.06458]
[1764676080999,0.22851397,87522.0,87521.0,0.11985]
[1764676081150,0.22851136,87523.0,87521.0,0.11985]
[1764676081353,0.22851397,87522.0,87521.0,0.08465]
[1764676082092,0.22851397,87522.0,87521.0,0.02938]
[1764676082298,0.22851397,87522.0,87521.0,0.11985]
[1764676082499,0.23992637,87527.0,87522.0,0.22851201]
[1764676082815,0.26460803,87527.0,87526.0,0.0352]
[1764676083018,0.01142517,87526.0,87521.0,0.02938]
[1764676083219,0.22851397,87522.0,87521.0,0.02938]
[1764676083431,0.0114253,87525.0,87522.0,0.05527]
[1764676083593,0.01142517,87526.0,87522.0,0.05527]
[1764676083594,0.23993062,87526.0,87525.0,0.0352]
[1764676083778,0.26461228,87526.0,87525.0,0.0352]
[1764676083977,0.26461228,87526.0,87525.0,0.09047]
[1764676086029,0.02468166,87526.0,87525.0,0.09047]
[1764676086235,0.08012133,87528.0,87527.0,0.22850091]
[1764676086418,0.323,87536.0,87531.0,0.01142452]
[1764676086648,0.22848492,87534.0,87531.0,0.01142452]
[1764676086838,0.55148347,87534.0,87533.0,0.06055]
[1764676087038,0.57616513,87534.0,87533.0,0.06055]
[1764676087261,0.5761643,87534.0,87533.0,0.11007]
[1764676090967,0.34768166,87534.0,87533.0,0.11007]
[1764676091582,0.5761643,87534.0,87533.0,0.11007]
[1764676091984,0.57685138,87534.0,87533.0,0.11007]
[1764676092516,0.34836874,87534.0,87533.0,0.11007]
[1764676092718,0.02536874,87534.0,87533.0,0.33855525]
[1764676092877,0.00068708,87534.0,87533.0,0.33855525]
[1764676094520,0.00068708,87534.0,87533.0,0.06055]
[1764676094727,0.22916972,87534.0,87533.0,0.02661]
[1764676094882,0.23991387,87532.0,87527.0,0.01142504]
[1764676095082,0.22849308,87530.0,87529.0,0.02661]
[1764676095684,0.22849308,87530.0,87529.0,0.11007]
[1764676096124,0.22905526,87530.0,87529.0,0.11007]
[1764676096324,0.22905526,87530.0,87529.0,0.06055]
[1764676096754,0.25373586,87530.0,87529.0,0.06055]
[1764676097153,0.22905526,87530.0,87529.0,0.06055]
[1764676097444,0.25373632,87530.0,87529.0,0.06055]
[1764676099914,0.25373632,87530.0,87529.0,0.11007]
[1764676102545,0.25373632,87530.0,87529.0,0.06055]
[1764676102922,0.22850614,87525.0,87524.0,0.01808]
[1764676103123,0.30862747,87525.0,87524.0,0.01808]
[1764676103349,0.30903351,87525.0,87524.0,0.09869]
[1764676103536,0.08052737,87525.0,87524.0,0.09869]
[1764676103740,0.30903351,87525.0,87524.0,0.09869]
[1764676106791,0.08052737,87525.0,87524.0,0.09869]